[Event "*** Titled Tuesday Blitz"]
[Site "Chess.com"]
[Date "2021.02.16"]
[Round "8"]
[White "Gerodot71"]
[Black "ARTHURMOTIVATOR"]
[Result "0-1"]
[WhiteElo "2452"]
[BlackElo "2339"]
[TimeControl "180+1"]
[EndTime "11:29:53 PST"]
[Termination "ARTHURMOTIVATOR won by resignation"]

1. d4 {[%clk 0:02:58.7]} 1... Nf6 {[%clk 0:02:47.4]} 2. c4 {[%clk 0:02:59]} 2...
c5 {[%clk 0:02:44.6]} 3. d5 {[%clk 0:02:58.6]} 3... g6 {[%clk 0:02:44.8]} 4. Nc3
{[%clk 0:02:58.2]} 4... Bg7 {[%clk 0:02:44.6]} 5. e4 {[%clk 0:02:56.3]} 5... d6
{[%clk 0:02:43.9]} 6. Nf3 {[%clk 0:02:55.8]} 6... O-O {[%clk 0:02:43.1]} 7. h3
{[%clk 0:02:56.2]} 7... e6 {[%clk 0:02:41.9]} 8. Bd3 {[%clk 0:02:56.1]} 8... Na6
{[%clk 0:02:41.2]} 9. O-O {[%clk 0:02:54.9]} 9... e5 {[%clk 0:02:39.2]} 10. a3
{[%clk 0:02:48.3]} 10... h6 {[%clk 0:02:36.2]} 11. Rb1 {[%clk 0:02:44.5]} 11...
Ne8 {[%clk 0:02:26.1]} 12. b4 {[%clk 0:02:39.1]} 12... f5 {[%clk 0:02:24]} 13.
Nd2 {[%clk 0:02:37.8]} 13... Nf6 {[%clk 0:02:20.8]} 14. f3 {[%clk 0:02:25.2]}
14... Nh5 {[%clk 0:02:18.6]} 15. Nb3 {[%clk 0:02:23.3]} 15... Nf4 {[%clk
0:02:13.6]} 16. bxc5 {[%clk 0:02:18.8]} 16... Qg5 {[%clk 0:02:02.6]} 17. Bxf4
{[%clk 0:02:04.9]} 17... exf4 {[%clk 0:02:00.4]} 18. e5 {[%clk 0:01:30.9]} 18...
Bxe5 {[%clk 0:01:52]} 19. Nb5 {[%clk 0:01:27]} 19... Nxc5 {[%clk 0:01:46.9]} 20.
Nxc5 {[%clk 0:01:26.5]} 20... dxc5 {[%clk 0:01:45.8]} 21. Re1 {[%clk 0:01:26.8]}
21... Qf6 {[%clk 0:01:39.9]} 22. d6 {[%clk 0:00:59.8]} 22... Bxd6 {[%clk
0:00:58.5]} 23. Bf1 {[%clk 0:00:52.8]} 23... Bb8 {[%clk 0:00:44.7]} 24. Qd5+
{[%clk 0:00:49.4]} 24... Qf7 {[%clk 0:00:41.4]} 25. Qxc5 {[%clk 0:00:40.8]}
25... Be6 {[%clk 0:00:34]} 26. Nd4 {[%clk 0:00:36.7]} 26... Bc8 {[%clk
0:00:30.3]} 27. Qb4 {[%clk 0:00:33.4]} 27... a5 {[%clk 0:00:28.8]} 28. Qc3
{[%clk 0:00:27.9]} 28... Ba7 {[%clk 0:00:27.9]} 29. c5 {[%clk 0:00:25.9]} 29...
Qc7 {[%clk 0:00:22.4]} 30. Rec1 {[%clk 0:00:18.5]} 30... Bd7 {[%clk 0:00:22.6]}
31. Bc4+ {[%clk 0:00:16.9]} 31... Kh7 {[%clk 0:00:21.2]} 32. Bb5 {[%clk
0:00:17.2]} 32... Rac8 {[%clk 0:00:20.1]} 33. Bxd7 {[%clk 0:00:16.8]} 33... Qxd7
{[%clk 0:00:21]} 34. Kh1 {[%clk 0:00:13.9]} 34... Rxc5 {[%clk 0:00:19.9]} 35.
Qe1 {[%clk 0:00:08.7]} 35... Rxc1 {[%clk 0:00:19.8]} 36. Rxc1 {[%clk 0:00:09.6]}
36... Bxd4 {[%clk 0:00:19.6]} 37. Rd1 {[%clk 0:00:10.1]} 37... Qg7 {[%clk
0:00:19.8]} 38. Qxa5 {[%clk 0:00:08]} 38... Be3 {[%clk 0:00:19.3]} 39. Qb4
{[%clk 0:00:08.2]} 39... Rf7 {[%clk 0:00:19.3]} 40. Qb5 {[%clk 0:00:08.4]} 40...
Re7 {[%clk 0:00:19]} 41. Rd8 {[%clk 0:00:08.5]} 41... Qa1+ {[%clk 0:00:17.2]}
42. Kh2 {[%clk 0:00:08.1]} 0-1

[Event "*** Titled Tuesday Blitz"]
[Site "Chess.com"]
[Date "2021.02.16"]
[Round "8"]
[White "MIJuanReyesRosa"]
[Black "catzapto"]
[Result "1-0"]
[WhiteElo "2115"]
[BlackElo "2093"]
[TimeControl "180+1"]
[EndTime "11:29:55 PST"]
[Termination "MIJuanReyesRosa won on time"]

1. d4 {[%clk 0:02:59.7]} 1... Nf6 {[%clk 0:02:57.4]} 2. Nf3 {[%clk 0:02:58.8]}
2... e6 {[%clk 0:02:45.6]} 3. c4 {[%clk 0:02:57.8]} 3... d5 {[%clk 0:02:44.4]}
4. Nc3 {[%clk 0:02:57.5]} 4... Bb4 {[%clk 0:02:43.1]} 5. Bg5 {[%clk 0:02:55]}
5... c6 {[%clk 0:02:41.8]} 6. e3 {[%clk 0:02:52.8]} 6... Qa5 {[%clk 0:02:34.8]}
7. Bxf6 {[%clk 0:02:24.7]} 7... Bxc3+ {[%clk 0:02:30.4]} 8. bxc3 {[%clk
0:02:23.5]} 8... Qxc3+ {[%clk 0:02:29.3]} 9. Nd2 {[%clk 0:02:22.4]} 9... gxf6
{[%clk 0:02:27.8]} 10. Rc1 {[%clk 0:02:07.2]} 10... Qa5 {[%clk 0:02:26.6]} 11.
Bd3 {[%clk 0:02:03.9]} 11... Na6 {[%clk 0:02:12.9]} 12. O-O {[%clk 0:02:02.6]}
12... e5 {[%clk 0:02:03]} 13. cxd5 {[%clk 0:01:53.8]} 13... cxd5 {[%clk
0:02:01.3]} 14. Nb3 {[%clk 0:01:45.6]} 14... Qb6 {[%clk 0:01:38.2]} 15. Qe2
{[%clk 0:01:36.6]} 15... e4 {[%clk 0:01:02.4]} 16. Bb5+ {[%clk 0:01:35]} 16...
Kf8 {[%clk 0:00:49.6]} 17. Bxa6 {[%clk 0:01:25.4]} 17... Qxa6 {[%clk 0:00:48.5]}
18. Qh5 {[%clk 0:01:21.5]} 18... f5 {[%clk 0:00:46.3]} 19. Rc7 {[%clk
0:01:12.8]} 19... Qg6 {[%clk 0:00:44.4]} 20. Qh4 {[%clk 0:01:06]} 20... Rg8
{[%clk 0:00:38.2]} 21. Qe7+ {[%clk 0:00:57.5]} 21... Kg7 {[%clk 0:00:36.6]} 22.
Qe5+ {[%clk 0:00:42.9]} 22... Kh6 {[%clk 0:00:29.9]} 23. Qf4+ {[%clk 0:00:36.7]}
23... Kh5 {[%clk 0:00:17.1]} 24. g3 {[%clk 0:00:34.2]} 24... Qg4 {[%clk
0:00:13.8]} 25. Qd6 {[%clk 0:00:28.1]} 25... Be6 {[%clk 0:00:11.1]} 26. Nc5
{[%clk 0:00:25.6]} 26... Rad8 {[%clk 0:00:08.8]} 27. Qe5 {[%clk 0:00:24.3]}
27... Rde8 {[%clk 0:00:06.1]} 28. Rxb7 {[%clk 0:00:17.6]} 28... Qg7 {[%clk
0:00:02.5]} 29. Nxe6 {[%clk 0:00:14.5]} 29... Qxe5 {[%clk 0:00:01.4]} 30. dxe5
{[%clk 0:00:07.6]} 30... fxe6 {[%clk 0:00:01.1]} 31. Rxh7+ {[%clk 0:00:07.2]}
31... Kg6 {[%clk 0:00:01.8]} 32. Rxa7 {[%clk 0:00:07.9]} 32... Rh8 {[%clk
0:00:02]} 33. Rc1 {[%clk 0:00:07.4]} 1-0

[Event "*** Titled Tuesday Blitz"]
[Site "Chess.com"]
[Date "2021.02.16"]
[Round "8"]
[White "Vugar_Manafov"]
[Black "IMAghasiyevKamal"]
[Result "1-0"]
[WhiteElo "2665"]
[BlackElo "2536"]
[TimeControl "180+1"]
[EndTime "11:29:56 PST"]
[Termination "Vugar_Manafov won by checkmate"]

1. Nf3 {[%clk 0:02:59.2]} 1... d5 {[%clk 0:02:58.1]} 2. g3 {[%clk 0:02:59.4]}
2... Nf6 {[%clk 0:02:57.9]} 3. Bg2 {[%clk 0:02:59.4]} 3... e6 {[%clk 0:02:57.8]}
4. O-O {[%clk 0:02:59.8]} 4... Be7 {[%clk 0:02:57.5]} 5. d3 {[%clk 0:03:00.7]}
5... O-O {[%clk 0:02:56.6]} 6. Nc3 {[%clk 0:03:01.3]} 6... Nc6 {[%clk
0:02:51.1]} 7. e4 {[%clk 0:03:01.5]} 7... dxe4 {[%clk 0:02:50.8]} 8. dxe4 {[%clk
0:03:02.4]} 8... e5 {[%clk 0:02:48.7]} 9. Bg5 {[%clk 0:02:58.5]} 9... Be6 {[%clk
0:02:33]} 10. Re1 {[%clk 0:02:49]} 10... Nd7 {[%clk 0:02:22.8]} 11. Bxe7 {[%clk
0:02:44.7]} 11... Qxe7 {[%clk 0:02:23]} 12. Nd5 {[%clk 0:02:42.1]} 12... Qd8
{[%clk 0:02:14.8]} 13. Qd2 {[%clk 0:02:36]} 13... f6 {[%clk 0:02:08.6]} 14. Rad1
{[%clk 0:02:33.7]} 14... Nb6 {[%clk 0:02:07.8]} 15. Qe2 {[%clk 0:02:08.2]} 15...
Nd7 {[%clk 0:01:46.5]} 16. c3 {[%clk 0:01:58.4]} 16... Ne7 {[%clk 0:01:46.1]}
17. Nh4 {[%clk 0:01:42.4]} 17... c6 {[%clk 0:01:42.4]} 18. Nxe7+ {[%clk
0:01:37.8]} 18... Qxe7 {[%clk 0:01:42.5]} 19. Nf5 {[%clk 0:01:38.4]} 19... Bxf5
{[%clk 0:01:42.3]} 20. exf5 {[%clk 0:01:39.3]} 20... Nb6 {[%clk 0:01:39]} 21.
Rd3 {[%clk 0:01:28.6]} 21... Rad8 {[%clk 0:01:33.8]} 22. Red1 {[%clk 0:01:28.5]}
22... Rxd3 {[%clk 0:01:33.7]} 23. Qxd3 {[%clk 0:01:29.3]} 23... Rc8 {[%clk
0:01:23.3]} 24. b4 {[%clk 0:01:02.7]} 24... Rc7 {[%clk 0:01:22.1]} 25. Qc2
{[%clk 0:00:53.3]} 25... Rd7 {[%clk 0:01:21.2]} 26. a4 {[%clk 0:00:52.6]} 26...
Qd8 {[%clk 0:01:15.5]} 27. Rxd7 {[%clk 0:00:51.9]} 27... Qxd7 {[%clk 0:01:15.7]}
28. a5 {[%clk 0:00:51.3]} 28... Nc4 {[%clk 0:01:12.3]} 29. Qb3 {[%clk
0:00:50.8]} 29... Qf7 {[%clk 0:01:11.8]} 30. a6 {[%clk 0:00:49.8]} 30... bxa6
{[%clk 0:00:56.1]} 31. Bxc6 {[%clk 0:00:49.5]} 31... Kf8 {[%clk 0:00:52.5]} 32.
Qa4 {[%clk 0:00:40.2]} 32... Qc7 {[%clk 0:00:20.4]} 33. Qxa6 {[%clk 0:00:38]}
33... Nd6 {[%clk 0:00:20.4]} 34. g4 {[%clk 0:00:25.2]} 34... g6 {[%clk
0:00:20.6]} 35. fxg6 {[%clk 0:00:24.9]} 35... hxg6 {[%clk 0:00:21]} 36. Kf1
{[%clk 0:00:21.4]} 36... Kg7 {[%clk 0:00:21.2]} 37. h3 {[%clk 0:00:21.3]} 37...
e4 {[%clk 0:00:18.9]} 38. Ke2 {[%clk 0:00:20.9]} 38... Qe7 {[%clk 0:00:18.8]}
39. Qa5 {[%clk 0:00:19.5]} 39... f5 {[%clk 0:00:18.2]} 40. Qd5 {[%clk
0:00:18.3]} 40... f4 {[%clk 0:00:13.2]} 41. Qd4+ {[%clk 0:00:17.6]} 41... Kh6
{[%clk 0:00:13.6]} 42. c4 {[%clk 0:00:17.9]} 42... f3+ {[%clk 0:00:12.9]} 43.
Kf1 {[%clk 0:00:16.8]} 43... Qg5 {[%clk 0:00:11.4]} 44. Qh8# {[%clk 0:00:16.7]}
1-0

[Event "*** Titled Tuesday Blitz"]
[Site "Chess.com"]
[Date "2021.02.16"]
[Round "8"]
[White "azikom"]
[Black "onnoelgersma"]
[Result "1-0"]
[WhiteElo "2644"]
[BlackElo "2454"]
[TimeControl "180+1"]
[EndTime "11:29:56 PST"]
[Termination "azikom won by resignation"]

1. d4 {[%clk 0:03:00.8]} 1... d5 {[%clk 0:02:59.9]} 2. Nf3 {[%clk 0:02:59.5]}
2... e6 {[%clk 0:03:00.2]} 3. c4 {[%clk 0:02:59.1]} 3... Nf6 {[%clk 0:03:00.7]}
4. Nc3 {[%clk 0:02:58.8]} 4... a6 {[%clk 0:03:01.2]} 5. cxd5 {[%clk 0:02:55.6]}
5... exd5 {[%clk 0:03:02.1]} 6. Bg5 {[%clk 0:02:52]} 6... Be6 {[%clk 0:03:02.7]}
7. e3 {[%clk 0:02:52]} 7... Nbd7 {[%clk 0:03:02.7]} 8. Bd3 {[%clk 0:02:47.2]}
8... Bd6 {[%clk 0:03:03.1]} 9. O-O {[%clk 0:02:44.6]} 9... O-O {[%clk
0:03:03.1]} 10. Bh4 {[%clk 0:02:43.1]} 10... c6 {[%clk 0:03:01.3]} 11. Rb1
{[%clk 0:02:41]} 11... Re8 {[%clk 0:03:00]} 12. Qc2 {[%clk 0:02:40.5]} 12... h6
{[%clk 0:02:59.5]} 13. Rfc1 {[%clk 0:02:39.1]} 13... Rc8 {[%clk 0:02:59.7]} 14.
Bg3 {[%clk 0:02:31.5]} 14... Bxg3 {[%clk 0:02:51.2]} 15. hxg3 {[%clk 0:02:31.2]}
15... Qe7 {[%clk 0:02:42.7]} 16. b4 {[%clk 0:02:29.8]} 16... b5 {[%clk
0:02:42.4]} 17. a4 {[%clk 0:02:18.1]} 17... Nb6 {[%clk 0:02:42]} 18. Qb3 {[%clk
0:01:59.8]} 18... Nc4 {[%clk 0:02:40.4]} 19. Re1 {[%clk 0:02:00]} 19... Bg4
{[%clk 0:02:34]} 20. Ra1 {[%clk 0:01:57.9]} 20... Ra8 {[%clk 0:02:02.5]} 21. Ra2
{[%clk 0:01:55.9]} 21... Nd7 {[%clk 0:01:48.4]} 22. e4 {[%clk 0:01:46.9]} 22...
Bxf3 {[%clk 0:01:41]} 23. gxf3 {[%clk 0:01:45.6]} 23... Qf6 {[%clk 0:01:31.7]}
24. Kg2 {[%clk 0:01:37.3]} 24... Qxd4 {[%clk 0:01:28.5]} 25. Rd1 {[%clk
0:01:35]} 25... Qf6 {[%clk 0:01:22.7]} 26. exd5 {[%clk 0:01:31.1]} 26... Nde5
{[%clk 0:01:20.3]} 27. Be4 {[%clk 0:01:29.1]} 27... Rad8 {[%clk 0:01:01.8]} 28.
dxc6 {[%clk 0:01:22.8]} 28... Nxc6 {[%clk 0:01:01.2]} 29. Rxd8 {[%clk 0:01:19]}
29... Rxd8 {[%clk 0:01:00.5]} 30. axb5 {[%clk 0:01:17.4]} 30... axb5 {[%clk
0:00:55.2]} 31. Nxb5 {[%clk 0:01:09.6]} 31... N4e5 {[%clk 0:00:51]} 32. Ra6
{[%clk 0:00:58.2]} 32... Rd3 {[%clk 0:00:27.3]} 33. Ra8+ {[%clk 0:00:52.7]}
33... Nd8 {[%clk 0:00:18.9]} 34. Qb1 {[%clk 0:00:47.3]} 34... Rxf3 {[%clk
0:00:12]} 35. Rxd8+ {[%clk 0:00:34.5]} 35... Qxd8 {[%clk 0:00:12.9]} 36. Bxf3
{[%clk 0:00:34.8]} 36... Nxf3 {[%clk 0:00:04.8]} 37. Kxf3 {[%clk 0:00:33.7]}
37... Qb6 {[%clk 0:00:04.1]} 38. Qd3 {[%clk 0:00:31.8]} 38... g6 {[%clk
0:00:03.3]} 39. Qd5 {[%clk 0:00:29.9]} 39... Kg7 {[%clk 0:00:03.4]} 40. Kg2
{[%clk 0:00:30.3]} 40... Kh7 {[%clk 0:00:02.6]} 41. Qc5 {[%clk 0:00:30.1]} 41...
Qb7+ {[%clk 0:00:02.6]} 42. Kg1 {[%clk 0:00:29.2]} 42... h5 {[%clk 0:00:03.1]}
43. Nd4 {[%clk 0:00:28.7]} 43... h4 {[%clk 0:00:02.9]} 44. gxh4 {[%clk
0:00:28.9]} 44... Qe4 {[%clk 0:00:02.7]} 45. h5 {[%clk 0:00:28.8]} 45... gxh5
{[%clk 0:00:02.8]} 46. Qf5+ {[%clk 0:00:28]} 46... Qxf5 {[%clk 0:00:03.4]} 47.
Nxf5 {[%clk 0:00:27.9]} 47... Kg6 {[%clk 0:00:04.3]} 1-0

[Event "*** Titled Tuesday Blitz"]
[Site "Chess.com"]
[Date "2021.02.16"]
[Round "8"]
[White "Azde"]
[Black "tusplingher"]
[Result "1-0"]
[WhiteElo "2429"]
[BlackElo "2265"]
[TimeControl "180+1"]
[EndTime "11:29:56 PST"]
[Termination "Azde won by resignation"]

1. d4 {[%clk 0:03:00.9]} 1... Nf6 {[%clk 0:02:59.4]} 2. c4 {[%clk 0:03:01.1]}
2... c5 {[%clk 0:02:58.8]} 3. dxc5 {[%clk 0:03:00.8]} 3... Na6 {[%clk 0:02:58]}
4. Be3 {[%clk 0:02:59.4]} 4... Ng4 {[%clk 0:02:50.8]} 5. Bd4 {[%clk 0:02:57.5]}
5... e5 {[%clk 0:02:50.6]} 6. Bc3 {[%clk 0:02:52]} 6... Bxc5 {[%clk 0:02:49.4]}
7. e3 {[%clk 0:02:50.6]} 7... d6 {[%clk 0:02:42.1]} 8. Be2 {[%clk 0:02:39.2]}
8... Nf6 {[%clk 0:02:40.3]} 9. Nd2 {[%clk 0:02:37.3]} 9... O-O {[%clk
0:02:39.7]} 10. Ngf3 {[%clk 0:02:36.1]} 10... Bf5 {[%clk 0:02:35.2]} 11. O-O
{[%clk 0:02:32.6]} 11... Re8 {[%clk 0:02:27.6]} 12. Re1 {[%clk 0:02:29.4]} 12...
Bb4 {[%clk 0:02:10.7]} 13. Rc1 {[%clk 0:02:24.1]} 13... Bxc3 {[%clk 0:02:10.3]}
14. Rxc3 {[%clk 0:02:25]} 14... Nc5 {[%clk 0:02:09.8]} 15. b4 {[%clk 0:02:08.4]}
15... Na6 {[%clk 0:02:07.6]} 16. Qb3 {[%clk 0:01:59.2]} 16... d5 {[%clk
0:02:06.3]} 17. c5 {[%clk 0:01:34.5]} 17... d4 {[%clk 0:01:55.7]} 18. Rcc1
{[%clk 0:01:32.9]} 18... dxe3 {[%clk 0:01:51.5]} 19. fxe3 {[%clk 0:01:29.1]}
19... Nc7 {[%clk 0:01:50.7]} 20. Nc4 {[%clk 0:01:24.5]} 20... e4 {[%clk
0:01:23.7]} 21. Nd4 {[%clk 0:01:23.1]} 21... Be6 {[%clk 0:01:21.9]} 22. Red1
{[%clk 0:01:03.9]} 22... Bd5 {[%clk 0:01:18.3]} 23. a4 {[%clk 0:00:58.6]} 23...
Qe7 {[%clk 0:01:17.2]} 24. Nf5 {[%clk 0:00:54.7]} 24... Qe6 {[%clk 0:01:08.7]}
25. Nfd6 {[%clk 0:00:53.8]} 25... Red8 {[%clk 0:01:06.3]} 26. Qb2 {[%clk
0:00:48.5]} 26... a6 {[%clk 0:00:56.5]} 27. b5 {[%clk 0:00:47.7]} 27... axb5
{[%clk 0:00:56.2]} 28. axb5 {[%clk 0:00:48.6]} 28... Nce8 {[%clk 0:00:46.1]} 29.
Nxe8 {[%clk 0:00:31.4]} 29... Nxe8 {[%clk 0:00:45.5]} 30. Nb6 {[%clk 0:00:31.5]}
30... Ra2 {[%clk 0:00:41]} 31. Qxa2 {[%clk 0:00:28.8]} 31... Bxa2 {[%clk
0:00:40.4]} 32. Rxd8 {[%clk 0:00:29.3]} 32... Qe7 {[%clk 0:00:38.5]} 33. Rcd1
{[%clk 0:00:25]} 33... g6 {[%clk 0:00:33.6]} 34. R1d7 {[%clk 0:00:19.9]} 34...
Qe5 {[%clk 0:00:30.6]} 35. Nd5 {[%clk 0:00:16.4]} 35... Bxd5 {[%clk 0:00:27.5]}
36. Rxd5 {[%clk 0:00:17.3]} 36... Qa1+ {[%clk 0:00:27.5]} 37. Kf2 {[%clk
0:00:17.1]} 37... Kf8 {[%clk 0:00:26.4]} 38. c6 {[%clk 0:00:16.2]} 38... bxc6
{[%clk 0:00:26.1]} 39. bxc6 {[%clk 0:00:16.8]} 39... Qc3 {[%clk 0:00:25.9]} 40.
Rc8 {[%clk 0:00:14.7]} 40... Qf6+ {[%clk 0:00:24.8]} 41. Kg1 {[%clk 0:00:13.9]}
41... Ke7 {[%clk 0:00:24.2]} 42. Rd7+ {[%clk 0:00:13.3]} 42... Kf8 {[%clk
0:00:23.6]} 43. Rdd8 {[%clk 0:00:13.6]} 43... Qa1+ {[%clk 0:00:22]} 44. Bf1
{[%clk 0:00:13.9]} 44... Ke7 {[%clk 0:00:20.7]} 45. Rxe8+ {[%clk 0:00:14.1]}
45... Kd6 {[%clk 0:00:21.1]} 46. Rxe4 {[%clk 0:00:14.2]} 46... Kd5 {[%clk
0:00:20.6]} 47. Rd4+ {[%clk 0:00:14.4]} 47... Ke5 {[%clk 0:00:21]} 48. c7 {[%clk
0:00:14.6]} 48... Qc3 {[%clk 0:00:20.4]} 49. Re8+ {[%clk 0:00:14.8]} 49... Kf5
{[%clk 0:00:20.8]} 50. c8=Q+ {[%clk 0:00:15.7]} 1-0

[Event "*** Titled Tuesday Blitz"]
[Site "Chess.com"]
[Date "2021.02.16"]
[Round "8"]
[White "shaheus"]
[Black "vaishali2001"]
[Result "0-1"]
[WhiteElo "2419"]
[BlackElo "2588"]
[TimeControl "180+1"]
[EndTime "11:29:57 PST"]
[Termination "vaishali2001 won on time"]

1. e4 {[%clk 0:03:00.7]} 1... c5 {[%clk 0:02:58]} 2. Nf3 {[%clk 0:03:00.2]} 2...
d6 {[%clk 0:02:58.5]} 3. c3 {[%clk 0:03:00.6]} 3... Nf6 {[%clk 0:02:57.5]} 4.
Qb3 {[%clk 0:02:58.4]} 4... Nc6 {[%clk 0:02:43.2]} 5. d4 {[%clk 0:02:56.5]} 5...
cxd4 {[%clk 0:02:28.8]} 6. cxd4 {[%clk 0:02:54.7]} 6... e6 {[%clk 0:02:19.5]} 7.
Nc3 {[%clk 0:02:53.7]} 7... Be7 {[%clk 0:02:18.9]} 8. Bd3 {[%clk 0:02:53.5]}
8... O-O {[%clk 0:02:17.4]} 9. O-O {[%clk 0:02:51.6]} 9... a6 {[%clk 0:01:55.2]}
10. a4 {[%clk 0:02:42.8]} 10... Bd7 {[%clk 0:01:48.7]} 11. Re1 {[%clk
0:02:30.1]} 11... b5 {[%clk 0:01:35.6]} 12. axb5 {[%clk 0:02:12.4]} 12... axb5
{[%clk 0:01:36.5]} 13. Rxa8 {[%clk 0:02:11.6]} 13... Qxa8 {[%clk 0:01:37.4]} 14.
e5 {[%clk 0:02:07.2]} 14... Nd5 {[%clk 0:00:36.5]} 15. Nxd5 {[%clk 0:01:35.4]}
15... exd5 {[%clk 0:00:37.4]} 16. Qxd5 {[%clk 0:01:23.8]} 16... Nb4 {[%clk
0:00:36.6]} 17. Qxa8 {[%clk 0:01:22.4]} 17... Rxa8 {[%clk 0:00:37.5]} 18. Bf1
{[%clk 0:00:24]} 18... Bc6 {[%clk 0:00:22.7]} 19. Ng5 {[%clk 0:00:18.4]} 19...
dxe5 {[%clk 0:00:20.5]} 20. dxe5 {[%clk 0:00:17.4]} 20... Ra1 {[%clk 0:00:17]}
21. Bd2 {[%clk 0:00:15.9]} 21... Rxe1 {[%clk 0:00:12.9]} 22. Bxe1 {[%clk
0:00:15.9]} 22... Nc2 {[%clk 0:00:10.1]} 23. Bd2 {[%clk 0:00:14.8]} 23... Nd4
{[%clk 0:00:07.9]} 24. Bd3 {[%clk 0:00:13.6]} 24... h6 {[%clk 0:00:07.2]} 25.
Ne4 {[%clk 0:00:11.7]} 25... b4 {[%clk 0:00:07.1]} 26. f3 {[%clk 0:00:09.8]}
26... Kf8 {[%clk 0:00:06.5]} 27. Kf2 {[%clk 0:00:09.5]} 27... Nb3 {[%clk
0:00:06.9]} 28. Be3 {[%clk 0:00:08.8]} 28... Ke8 {[%clk 0:00:06.5]} 29. Bc4
{[%clk 0:00:07.4]} 29... Na5 {[%clk 0:00:06.9]} 30. Bd3 {[%clk 0:00:06.4]} 30...
Kd7 {[%clk 0:00:06.6]} 31. Nc5+ {[%clk 0:00:06.4]} 31... Ke8 {[%clk 0:00:06]}
32. Na6 {[%clk 0:00:05]} 32... Kd7 {[%clk 0:00:04.4]} 33. Bc5 {[%clk 0:00:04.9]}
33... Bd8 {[%clk 0:00:04.2]} 34. Nxb4 {[%clk 0:00:03.7]} 34... Ba4 {[%clk
0:00:02.4]} 35. Bd4 {[%clk 0:00:01.9]} 35... Nb3 {[%clk 0:00:02.7]} 36. Bc3
{[%clk 0:00:01.5]} 36... Nc5 {[%clk 0:00:02.6]} 0-1

[Event "*** Titled Tuesday Blitz"]
[Site "Chess.com"]
[Date "2021.02.16"]
[Round "8"]
[White "nrvisakh"]
[Black "stoleriu"]
[Result "1/2-1/2"]
[WhiteElo "2787"]
[BlackElo "2625"]
[TimeControl "180+1"]
[EndTime "11:29:58 PST"]
[Termination "Game drawn - insufficient material"]

1. Nf3 {[%clk 0:03:00.9]} 1... Nf6 {[%clk 0:02:59.1]} 2. g3 {[%clk 0:02:58.5]}
2... b5 {[%clk 0:02:57.5]} 3. Bg2 {[%clk 0:02:58.3]} 3... d5 {[%clk 0:02:51.4]}
4. O-O {[%clk 0:02:55]} 4... e6 {[%clk 0:02:51.2]} 5. d3 {[%clk 0:02:47.1]} 5...
Be7 {[%clk 0:02:50.8]} 6. e4 {[%clk 0:02:45.3]} 6... O-O {[%clk 0:02:50.2]} 7.
exd5 {[%clk 0:02:42.8]} 7... exd5 {[%clk 0:02:47.8]} 8. Re1 {[%clk 0:02:42.2]}
8... Re8 {[%clk 0:02:39.8]} 9. c4 {[%clk 0:02:29.6]} 9... c6 {[%clk 0:02:33.2]}
10. Nc3 {[%clk 0:02:07.7]} 10... b4 {[%clk 0:02:24.6]} 11. Na4 {[%clk
0:02:05.8]} 11... Bg4 {[%clk 0:01:40.5]} 12. h3 {[%clk 0:02:00.9]} 12... Bh5
{[%clk 0:01:39.9]} 13. g4 {[%clk 0:02:00.8]} 13... Bg6 {[%clk 0:01:21.7]} 14.
Ne5 {[%clk 0:01:59.3]} 14... Bd6 {[%clk 0:00:59.8]} 15. Bf4 {[%clk 0:01:56.6]}
15... Bxe5 {[%clk 0:00:19.3]} 16. Bxe5 {[%clk 0:01:54.8]} 16... Nbd7 {[%clk
0:00:18.6]} 17. d4 {[%clk 0:01:45.5]} 17... Nxe5 {[%clk 0:00:13.4]} 18. dxe5
{[%clk 0:01:45.3]} 18... Ne4 {[%clk 0:00:13.6]} 19. cxd5 {[%clk 0:01:43.6]}
19... cxd5 {[%clk 0:00:13]} 20. Qd4 {[%clk 0:01:36.4]} 20... Qa5 {[%clk
0:00:12.2]} 21. b3 {[%clk 0:01:33.5]} 21... Rad8 {[%clk 0:00:12.2]} 22. Rac1
{[%clk 0:01:30.8]} 22... Rc8 {[%clk 0:00:08.3]} 23. f4 {[%clk 0:01:28.9]} 23...
h5 {[%clk 0:00:05.3]} 24. f5 {[%clk 0:01:19.4]} 24... Bh7 {[%clk 0:00:05.8]} 25.
Rxc8 {[%clk 0:01:00.3]} 25... Rxc8 {[%clk 0:00:06.7]} 26. Bxe4 {[%clk
0:01:00.6]} 26... dxe4 {[%clk 0:00:07.6]} 27. Qxe4 {[%clk 0:01:01.4]} 27... hxg4
{[%clk 0:00:08.5]} 28. hxg4 {[%clk 0:01:01.4]} 28... Re8 {[%clk 0:00:09.4]} 29.
Qc6 {[%clk 0:00:54.4]} 29... Qd8 {[%clk 0:00:07.4]} 30. e6 {[%clk 0:00:53.4]}
30... fxe6 {[%clk 0:00:05.6]} 31. Rxe6 {[%clk 0:00:46.4]} 31... Qd1+ {[%clk
0:00:05.8]} 32. Kh2 {[%clk 0:00:45.7]} 32... Qd2+ {[%clk 0:00:05.6]} 33. Kg3
{[%clk 0:00:44.1]} 33... Qd3+ {[%clk 0:00:03.3]} 34. Qf3 {[%clk 0:00:43.7]}
34... Qxf3+ {[%clk 0:00:03]} 35. Kxf3 {[%clk 0:00:44.6]} 35... Rxe6 {[%clk
0:00:03.3]} 36. fxe6 {[%clk 0:00:44.7]} 36... Kf8 {[%clk 0:00:04.2]} 37. Kf4
{[%clk 0:00:45]} 37... Ke7 {[%clk 0:00:04.8]} 38. Ke5 {[%clk 0:00:45.3]} 38...
Bb1 {[%clk 0:00:04]} 39. Nc5 {[%clk 0:00:43.3]} 39... Bxa2 {[%clk 0:00:04.9]}
40. Kd5 {[%clk 0:00:41.2]} 40... a5 {[%clk 0:00:04.8]} 41. Kc4 {[%clk
0:00:40.6]} 41... a4 {[%clk 0:00:04.2]} 42. Nxa4 {[%clk 0:00:40.8]} 42... Kxe6
{[%clk 0:00:04.8]} 43. Kxb4 {[%clk 0:00:36.6]} 43... Ke5 {[%clk 0:00:05.4]} 44.
Nc3 {[%clk 0:00:34.3]} 44... Bxb3 {[%clk 0:00:05.7]} 45. Kxb3 {[%clk 0:00:35.1]}
45... Kf4 {[%clk 0:00:06.2]} 46. Kc4 {[%clk 0:00:35.2]} 46... Kxg4 {[%clk
0:00:06.6]} 47. Kd4 {[%clk 0:00:36.1]} 47... g5 {[%clk 0:00:07.1]} 48. Ne4
{[%clk 0:00:36.2]} 48... Kf4 {[%clk 0:00:06.8]} 49. Nxg5 {[%clk 0:00:36.6]}
1/2-1/2